bitfinex-derivatives/quotes_BTCF0:USTF0_20250119
["timestamp","ask_amount","ask_price","bid_price","bid_amount"]
[1737329615622,0.3608,100090.0,100060.0,0.3608]
[1737329615825,0.1,100100.0,100070.0,0.3608]
[1737329616019,0.4608,100100.0,100060.0,0.7522]
[1737329616219,0.1,100100.0,100060.0,0.7522]
[1737329616420,0.1,100100.0,100070.0,0.3608]
[1737329616624,0.3608,100120.0,100110.0,0.050012]
[1737329616824,0.205538,100120.0,100110.0,0.050012]
[1737329617131,0.3608,100150.0,100110.0,0.948892]
[1737329617430,0.36409036,100160.0,100150.0,0.049992]
[1737329617431,0.00329036,100160.0,100150.0,0.049992]
[1737329617732,0.3608,100190.0,100150.0,0.410792]
[1737329618021,7.5e-07,100220.0,100150.0,0.410792]
[1737329618022,0.36080075,100220.0,100180.0,0.3608]
[1737329618227,7.5e-07,100220.0,100200.0,0.3608]
[1737329618427,7.5e-07,100220.0,100210.0,0.049962]
[1737329619015,0.3608,100260.0,100210.0,0.3608]
[1737329619218,1e-08,100250.0,100240.0,0.3608]
[1737329619427,1e-08,100250.0,100240.0,0.410747]
[1737329619640,1e-08,100250.0,100240.0,0.710747]
[1737329619820,0.32680543,100300.0,100290.0,0.049922]
[1737329620227,0.3608,100320.0,100290.0,0.67576]
[1737329620526,0.3608,100330.0,100320.0,0.049907]
[1737329620728,0.3608,100330.0,100280.0,0.37576]
[1737329621027,0.3608,100350.0,100320.0,0.3608]
[1737329621224,0.3608,100350.0,100340.0,0.049897]
[1737329621523,0.3608,100350.0,100310.0,0.3608]
[1737329621728,0.3608,100320.0,100290.0,1.18769547]
[1737329621934,0.3608,100340.0,100330.0,0.049902]
[1737329622236,0.3608,100370.0,100360.0,0.049887]
[1737329622422,0.049835,100470.0,100380.0,0.049877]
[1737329622629,0.3608,100430.0,100400.0,0.3608]
[1737329622923,0.3608,100440.0,100410.0,0.3608]
[1737329623125,0.3608,100450.0,100410.0,0.3608]
[1737329623326,0.410652,100440.0,100400.0,0.4608]
[1737329623521,0.410663,100410.0,100400.0,0.1]
[1737329623729,0.3608,100410.0,100400.0,0.1]
[1737329624024,0.410663,100410.0,100400.0,0.1]
[1737329624223,0.410663,100410.0,100370.0,0.01]
[1737329624224,0.3608,100410.0,100370.0,0.04988]
[1737329624429,0.3608,100400.0,100370.0,0.04988]
[1737329624729,0.410671,100400.0,100350.0,0.420691]
[1737329624925,0.3608,100390.0,100350.0,0.3608]
[1737329625131,0.41066,100420.0,100370.0,0.3608]
[1737329625427,0.3608,100440.0,100400.0,0.049863]
[1737329625628,0.41065,100440.0,100400.0,0.049863]
[1737329625831,0.3608,100450.0,100420.0,0.3608]
[1737329626021,0.3608,100450.0,100410.0,0.049861]
[1737329626022,0.3608,100440.0,100410.0,0.049861]
[1737329626224,0.3608,100430.0,100400.0,0.53688]
[1737329626425,0.410663,100410.0,100370.0,0.42068]
[1737329626625,0.049863,100410.0,100380.0,0.049875]
[1737329626823,0.3608,100390.0,100360.0,0.53688]
[1737329627128,0.410673,100390.0,100350.0,0.36229458]
[1737329627328,0.410686,100370.0,100350.0,0.00149458]
[1737329627527,0.3608,100360.0,100320.0,0.94736491]
[1737329627742,0.410683,100370.0,100340.0,0.049897]
[1737329627930,0.4013,100410.0,100340.0,0.049897]
[1737329627931,0.3608,100400.0,100350.0,0.3608]
[1737329628131,0.82169298,100410.0,100370.0,0.410681]
[1737329628321,0.410669,100400.0,100370.0,0.049881]
[1737329628524,0.00972998,100410.0,100390.0,0.3608]
[1737329628738,0.049831,100480.0,100440.0,0.049845]
[1737329628925,0.4608,100500.0,100460.0,0.049836]
[1737329629130,0.3608,100490.0,100470.0,0.049833]
[1737329629324,0.410628,100480.0,100460.0,0.3608]
[1737329629538,0.3608,100490.0,100440.0,0.89736]
[1737329629730,0.3608,100470.0,100430.0,0.3608]
[1737329629941,0.049843,100450.0,100420.0,0.049855]
[1737329630524,0.41065,100440.0,100410.0,0.89704]
[1737329630737,0.049859,100420.0,100400.0,7.08e-05]
[1737329631034,0.049865,100410.0,100370.0,0.94692]
[1737329631233,0.049827,100490.0,100370.0,0.94692]
[1737329631234,0.3608,100460.0,100400.0,0.3608]
[1737329631430,0.410643,100450.0,100430.0,0.049851]
[1737329631631,0.3608,100480.0,100450.0,0.04984]
[1737329631834,0.3608,100480.0,100430.0,0.89704]
[1737329631835,0.410634,100470.0,100430.0,0.89704]
[1737329632045,0.410634,100470.0,100440.0,0.049846]
[1737329632046,0.3608,100460.0,100440.0,0.049846]
[1737329632347,0.3608,100450.0,100430.0,0.53624]
[1737329632642,0.14982,100500.0,100450.0,0.049839]
[1737329632643,0.41063,100480.0,100450.0,0.049839]
[1737329632842,0.3608,100470.0,100430.0,0.89704]
[1737329633033,0.3608,100460.0,100430.0,0.53624]
[1737329633233,0.3608,100470.0,100430.0,0.53624]
[1737329633537,0.3608,100480.0,100450.0,0.049843]
[1737329633746,0.410626,100490.0,100460.0,0.049835]
[1737329634033,0.410626,100490.0,100450.0,0.3708]
[1737329634235,0.1,100500.0,100470.0,0.3608]
[1737329634426,0.1,100500.0,100480.0,0.049824]
[1737329634631,0.1,100500.0,100490.0,0.049823]
[1737329634830,0.3608,100520.0,100500.0,0.049815]
[1737329635038,0.410604,100530.0,100500.0,0.410615]
[1737329635245,0.410601,100540.0,100510.0,0.049812]
[1737329635438,0.1,100600.0,100580.0,0.049777]
[1737329635639,0.149773,100600.0,100580.0,0.3608]
[1737329635827,0.3608,100590.0,100550.0,0.3608]
[1737329636131,0.049795,100550.0,100530.0,0.3608]
[1737329636338,0.3608,100580.0,100530.0,0.3608]
[1737329636540,0.049798,100540.0,100520.0,0.36229199]
[1737329636839,0.410603,100530.0,100480.0,0.3622927]
[1737329637140,0.3608,100500.0,100460.0,0.3609211]
[1737329637341,0.049832,100480.0,100470.0,0.36279064]
[1737329637541,0.0498,100540.0,100470.0,0.37279064]
[1737329637542,0.3608,100540.0,100470.0,0.37279064]
[1737329637743,0.049799,100540.0,100520.0,0.3608]
[1737329638043,0.049803,100530.0,100520.0,0.3608]
[1737329638340,0.410594,100550.0,100490.0,0.3608]
[1737329638640,0.3608,100540.0,100500.0,0.00199004]
[1737329638834,0.0498,100540.0,100510.0,0.049812]
[1737329639030,0.0498,100540.0,100520.0,0.3608]
[1737329639232,0.049792,100560.0,100520.0,0.3608]
[1737329639444,0.049798,100540.0,100510.0,0.3608]
[1737329639745,0.410594,100550.0,100510.0,0.3708]
[1737329640046,0.049809,100520.0,100500.0,0.05180704]
[1737329640245,0.410613,100510.0,100500.0,0.00199004]
[1737329640543,0.11248866,100580.0,100570.0,0.049783]
[1737329640742,0.1,100600.0,100590.0,0.049773]
[1737329640940,0.1,100600.0,100590.0,0.7216]
[1737329641146,0.746728,100600.0,100590.0,0.7216]
[1737329641442,0.746728,100600.0,100550.0,0.54568]
[1737329641443,0.23616,100580.0,100550.0,0.89648]
[1737329641647,0.23616,100580.0,100570.0,0.410583]
[1737329641942,0.23616,100560.0,100550.0,0.946271]
[1737329642132,0.23616,100560.0,100550.0,0.89648]
[1737329642335,0.1,100600.0,100560.0,0.01]
[1737329642544,0.33616,100600.0,100580.0,0.3708]
[1737329642759,0.14200282,100620.0,100610.0,0.049764]
[1737329643049,0.19685516,100650.0,100640.0,0.059749]
[1737329643241,0.04112718,100650.0,100640.0,0.781349]
[1737329643437,0.04112718,100650.0,100640.0,0.059749]
[1737329643742,0.32703218,100650.0,100620.0,0.049754]
[1737329643949,0.23616,100630.0,100620.0,0.049754]
[1737329644145,0.23616,100640.0,100620.0,0.3708]
[1737329644341,0.04112718,100650.0,100640.0,0.049749]
[1737329644644,0.25309949,100710.0,100680.0,0.01]
[1737329644946,4.9e-07,100710.0,100700.0,0.420519]
[1737329645148,0.30934382,100740.0,100720.0,0.059709]
[1737329645348,0.36855882,100800.0,100760.0,0.01]
[1737329645655,0.36855882,100800.0,100780.0,0.01]
[1737329645656,0.29855882,100800.0,100780.0,0.01]
[1737329645946,0.29855882,100800.0,100760.0,0.3608]
[1737329645947,0.3608,100800.0,100760.0,0.3608]
[1737329646137,0.41046,100820.0,100760.0,0.049689]
[1737329646337,0.41046,100820.0,100810.0,0.3608]
[1737329646338,0.23616,100820.0,100810.0,0.3608]
[1737329646539,0.3608,100850.0,100810.0,0.3708]
[1737329646742,0.23616,100840.0,100820.0,0.01]
[1737329647037,0.45462823,100880.0,100840.0,0.01]
[1737329647245,0.3608,100850.0,100840.0,0.01]
[1737329647441,0.049653,100840.0,100820.0,0.90604]
[1737329647641,0.3608,100860.0,100820.0,0.90604]
[1737329647837,0.23616,100840.0,100820.0,0.54524]
[1737329648041,0.45462823,100880.0,100830.0,0.3608]
[1737329648245,0.049672,100800.0,100780.0,0.3608]
[1737329648535,0.049662,100820.0,100790.0,0.3608]
[1737329648741,0.410453,100840.0,100780.0,0.3608]
[1737329648943,0.23616,100830.0,100800.0,0.3608]
[1737329649246,0.23616,100830.0,100810.0,0.3608]
[1737329649444,0.04965,100850.0,100820.0,0.3608]
[1737329649636,0.04965,100850.0,100830.0,0.3608]
[1737329649838,0.049637,100870.0,100840.0,0.3608]
[1737329650035,0.3608,100910.0,100860.0,0.410439]
[1737329650036,0.049618,100910.0,100860.0,0.410439]
[1737329650347,0.3608,100910.0,100870.0,0.89552]
[1737329650845,0.3608,100900.0,100870.0,0.68271472]
[1737329651153,9.715e-05,100890.0,100870.0,0.53472]
[1737329651643,0.049632,100880.0,100840.0,0.78097563]
[1737329651845,0.049632,100880.0,100840.0,0.79783896]
[1737329651846,0.0497161,100880.0,100840.0,0.79783896]
[1737329652144,0.3608,100850.0,100840.0,0.43703896]
[1737329652342,8.41e-05,100880.0,100850.0,0.049642]
[1737329652540,8.41e-05,100880.0,100870.0,0.3608]
[1737329652741,0.04964,100860.0,100840.0,0.78295896]
[1737329652945,0.2858,100860.0,100840.0,0.78295896]
[1737329653345,0.04975879,100850.0,100840.0,0.00205896]
[1737329653847,0.41055879,100850.0,100840.0,0.00205896]
[1737329654143,0.946605,100850.0,100840.0,9.6e-07]
[1737329654449,0.049663,100820.0,100800.0,0.36278412]
[1737329654642,0.049654,100840.0,100800.0,0.41245212]
[1737329654841,0.23615904,100860.0,100830.0,0.3608]
[1737329655042,0.466207,100930.0,100830.0,0.3608]
[1737329655043,0.049627,100890.0,100850.0,0.3608]
[1737329655247,0.28577704,100910.0,100870.0,0.3608]
[1737329655444,0.23615904,100910.0,100900.0,0.3608]
[1737329655640,0.3608,100940.0,100900.0,0.3608]
[1737329655951,0.28577004,100920.0,100880.0,0.410428]
[1737329656152,0.28577004,100920.0,100890.0,0.00198235]
[1737329656153,0.28578004,100900.0,100890.0,0.00198235]
[1737329656447,0.04964,100860.0,100840.0,0.36228736]
[1737329656639,0.049645,100850.0,100840.0,0.36228736]
[1737329656846,0.64670398,100850.0,100840.0,0.00148736]
[1737329657045,0.049655,100830.0,100820.0,7.24e-05]
[1737329657245,0.6467161,100830.0,100780.0,0.36228827]
[1737329657445,0.049675,100790.0,100780.0,0.00148827]
[1737329657651,0.28583369,100790.0,100780.0,0.00148827]
[1737329658144,7.077e-05,100790.0,100780.0,0.36228827]
[1737329658340,0.23622946,100790.0,100780.0,0.00148827]
[1737329658546,0.64670446,100790.0,100780.0,2.7e-07]
[1737329658850,0.23615869,100790.0,100750.0,0.36091078]
[1737329659046,0.23615869,100790.0,100760.0,0.3608]
[1737329659047,0.23623879,100780.0,100760.0,0.3608]
[1737329659347,0.23615869,100760.0,100750.0,0.00011078]
[1737329659543,0.59703132,100760.0,100720.0,0.89464]
[1737329659744,0.049698,100750.0,100730.0,0.3608]
[1737329659954,0.049698,100750.0,100720.0,0.89464]
[1737329660247,0.049709,100720.0,100700.0,0.3608]
[1737329660437,0.28587769,100700.0,100690.0,0.00148938]
[1737329660637,0.23624858,100700.0,100690.0,0.00148938]
[1737329660851,0.64676758,100700.0,100670.0,0.36091164]
[1737329661044,0.59695869,100680.0,100670.0,0.00011164]
[1737329661249,0.59695869,100680.0,100640.0,0.814948]
[1737329661250,0.64668769,100680.0,100640.0,0.814948]
[1737329661442,0.59695869,100650.0,100630.0,0.42296]
[1737329661745,0.59695869,100640.0,100620.0,0.3608]
[1737329661945,0.23615869,100630.0,100620.0,0.410559]
[1737329662149,0.59695869,100630.0,100610.0,0.00149085]
[1737329662351,8.249e-05,100620.0,100610.0,0.00149085]
[1737329662645,8.249e-05,100620.0,100610.0,0.36229085]
[1737329663042,0.3608,100700.0,100630.0,0.049751]
[1737329663237,0.3608,100700.0,100630.0,0.3608]
[1737329663238,0.23615869,100650.0,100630.0,0.3608]
[1737329663442,0.28590769,100640.0,100610.0,0.36229085]
[1737329663642,0.28589969,100660.0,100620.0,0.3608]
[1737329663956,0.3608,100710.0,100650.0,0.410542]
[1737329664143,0.3608,100720.0,100660.0,0.3608]
[1737329664644,0.23615869,100710.0,100670.0,0.3608]
[1737329664840,0.23615869,100690.0,100680.0,0.3608]
[1737329665047,0.23615869,100690.0,100660.0,0.3608]
[1737329665348,0.23615869,100670.0,100640.0,0.7583]
[1737329665548,0.23615869,100660.0,100640.0,0.808047]
[1737329665750,0.3608,100680.0,100650.0,0.049744]
[1737329666049,8.407e-05,100670.0,100660.0,0.049739]
[1737329666249,8.407e-05,100670.0,100660.0,0.410539]
[1737329666446,0.3608,100730.0,100660.0,0.410539]
[1737329666653,0.23615869,100720.0,100690.0,0.049724]
[1737329666948,0.23615869,100720.0,100700.0,0.3608]
[1737329667158,0.049706,100730.0,100700.0,0.3608]
[1737329667159,0.39983374,100760.0,100710.0,0.3608]
[1737329667450,0.00011415,100750.0,100700.0,0.3608]
[1737329667641,0.23615869,100730.0,100720.0,0.3608]
[1737329667948,0.23615869,100730.0,100710.0,0.3608]
[1737329668148,0.00012069,100720.0,100710.0,0.3608]
[1737329668345,0.00184665,100780.0,100710.0,1.03652]
[1737329668542,0.23615869,100770.0,100750.0,0.3608]
[1737329668845,0.00184665,100780.0,100770.0,0.049685]
[1737329669045,0.00018565,100780.0,100770.0,0.410485]
[1737329669453,1.1791,100850.0,100800.0,0.049667]
[1737329669454,0.049652,100840.0,100800.0,0.049667]
[1737329669646,0.049652,100840.0,100780.0,0.410478]
[1737329669647,0.23615869,100810.0,100780.0,0.410478]
[1737329669852,0.23615869,100810.0,100790.0,0.049672]
[1737329670051,0.3608,100800.0,100780.0,0.3608]
[1737329670354,0.23615869,100790.0,100770.0,0.410483]
[1737329670549,0.23615869,100810.0,100790.0,0.049675]
[1737329670768,0.3608,100840.0,100790.0,0.3608]
[1737329671057,0.410432,100880.0,100830.0,0.3608]
[1737329671352,0.23615869,100830.0,100790.0,0.3608]
[1737329671557,0.3608,100840.0,100800.0,0.410469]
[1737329671558,0.049652,100840.0,100800.0,0.410469]
[1737329671749,0.049643,100860.0,100820.0,0.049657]
[1737329671951,0.049636,100870.0,100830.0,0.3608]
[1737329672151,0.23615869,100860.0,100850.0,0.3608]
[1737329672342,0.3608,100880.0,100850.0,0.049643]
[1737329672652,0.3608,100880.0,100830.0,0.3608]
[1737329672851,0.23615869,100840.0,100830.0,0.3608]
[1737329673149,0.23615869,100840.0,100820.0,0.049658]
[1737329673350,0.23615869,100840.0,100810.0,0.410461]
[1737329673546,0.410438,100870.0,100820.0,0.3608]
[1737329673852,0.23615869,100860.0,100830.0,0.3608]
[1737329674050,0.3608,100890.0,100860.0,0.049639]
[1737329674243,0.049624,100900.0,100860.0,0.049639]
[1737329674558,0.23615869,100870.0,100860.0,0.049639]
[1737329674950,0.410418,100910.0,100880.0,0.04963]
[1737329675454,0.4193,100940.0,100880.0,0.41043]
[1737329675455,0.3608,100930.0,100880.0,0.41043]
[1737329675751,0.23615869,100890.0,100880.0,0.3608]
[1737329675956,0.23615869,100890.0,100880.0,0.410428]
[1737329676152,0.3608,100920.0,100880.0,0.410428]
[1737329676345,0.3608,100940.0,100900.0,0.3608]
[1737329676552,0.23615869,100930.0,100920.0,0.410411]
[1737329676747,0.23615869,100950.0,100930.0,0.049602]
[1737329677047,0.410383,100980.0,100940.0,0.3608]
[1737329677249,0.23615869,100950.0,100930.0,0.049602]
[1737329677447,0.23615869,100940.0,100920.0,0.410409]
[1737329677651,0.23615869,100930.0,100920.0,0.049609]
[1737329677956,0.23615869,100930.0,100910.0,0.3608]
[1737329678149,0.23615869,100920.0,100900.0,0.3608]
[1737329678347,0.23615869,100910.0,100900.0,0.410421]
[1737329678752,0.59695869,100910.0,100890.0,0.3608]
[1737329678956,0.23615869,100900.0,100880.0,0.3608]
[1737329679258,0.23615869,100890.0,100870.0,0.3622868]
[1737329679552,0.23615869,100880.0,100870.0,0.0014868]
[1737329679755,0.3608,100900.0,100890.0,0.049625]
[1737329679949,0.3608,100940.0,100900.0,0.049617]
[1737329680264,0.23615869,100930.0,100920.0,0.410407]
[1737329680556,0.23615869,100940.0,100920.0,0.049607]
[1737329680749,0.049597,100950.0,100920.0,0.049607]
[1737329680943,0.23615869,100940.0,100920.0,0.410407]
[1737329681148,0.23615869,100940.0,100920.0,0.3608]
[1737329681457,0.149573,101000.0,100930.0,0.95506468]
[1737329681652,0.23615869,100970.0,100960.0,0.049588]
[1737329681850,0.23615869,100970.0,100940.0,0.3608]
[1737329681851,0.3608,100970.0,100940.0,0.3608]
[1737329682150,0.23615869,100960.0,100940.0,0.3608]
[1737329682353,0.23615869,100950.0,100930.0,0.3608]
[1737329682547,0.23615869,100950.0,100930.0,0.410401]
[1737329682743,0.23615869,100950.0,100940.0,0.049601]
[1737329682948,0.23615869,100950.0,100940.0,0.3608]
[1737329683147,0.049591,100960.0,100940.0,0.3608]
[1737329683347,0.41039,100970.0,100930.0,0.410405]
[1737329683545,0.4608,101000.0,100950.0,0.54466068]
[1737329683847,0.23615869,100980.0,100970.0,0.049586]
[1737329684049,0.33615869,101000.0,100970.0,0.54466068]
[1737329684249,0.1,101000.0,100980.0,0.3608]
[1737329684454,0.33615869,101000.0,100980.0,0.410381]
[1737329684649,0.23615869,100990.0,100980.0,0.410381]
[1737329684849,0.33615869,101000.0,100980.0,0.410381]
[1737329685044,0.33615869,101000.0,100990.0,0.410376]
[1737329685452,0.3608,101040.0,100990.0,0.89423668]
[1737329685651,0.3608,101040.0,101010.0,0.410365]
[1737329685858,0.23615869,101030.0,101020.0,0.049562]
[1737329686156,0.23615869,101030.0,101020.0,0.410362]
[1737329686356,0.3608,101040.0,101030.0,0.049557]
[1737329686555,0.23615869,101030.0,101010.0,0.59422368]
[1737329686745,0.23615869,101020.0,101010.0,0.049565]
[1737329687159,0.049568,101010.0,100980.0,9.796e-05]
[1737329687354,0.23615869,101000.0,100990.0,0.049575]
[1737329687549,0.23615869,101000.0,100990.0,0.410375]
[1737329687852,0.3608,101010.0,100980.0,9.796e-05]
[1737329688055,0.23615869,100990.0,100980.0,9.796e-05]
[1737329688447,0.59695869,100990.0,100950.0,0.410393]
[1737329688757,0.64655069,100960.0,100940.0,0.049599]
[1737329688950,0.3608,100980.0,100940.0,0.54466068]
[1737329689152,0.410377,100990.0,100950.0,0.3608]
[1737329689346,0.23615869,101000.0,100980.0,0.59424168]
[1737329689548,0.7858,101040.0,101000.0,0.049569]
[1737329689755,0.23615869,100990.0,100980.0,0.049576]
[1737329689949,0.64653669,100990.0,100960.0,0.410389]
[1737329690255,9.176e-05,100980.0,100960.0,0.3608]
[1737329690452,9.176e-05,100980.0,100970.0,0.410386]
[1737329690658,9.176e-05,100980.0,100970.0,0.59424668]
[1737329690859,0.23625045,100980.0,100970.0,0.59424668]
[1737329691046,0.23625045,100980.0,100950.0,0.59435443]
[1737329691248,0.28574969,100960.0,100950.0,9.775e-05]
[1737329691452,0.049567,101010.0,100950.0,0.59435443]
[1737329691751,0.049566,101020.0,100990.0,0.049576]
[1737329691953,0.3608,101030.0,101010.0,0.04957]
[1737329692256,0.22615869,101020.0,100980.0,0.3608]
[1737329692457,0.22615869,101010.0,101000.0,0.049572]
[1737329692756,0.22615869,101000.0,100990.0,0.049577]
[1737329693057,0.410359,101040.0,100990.0,0.59424168]
[1737329693251,0.22615869,101010.0,101000.0,0.410376]
[1737329693659,0.3608,101040.0,101010.0,0.04957]
[1737329693960,0.049563,101030.0,101010.0,0.04957]
[1737329694156,0.58695869,101020.0,100990.0,0.04958]
[1737329694456,0.3608,101040.0,101000.0,0.3608]
[1737329694854,0.22615869,101010.0,101000.0,0.049576]
[1737329695052,0.22615869,101010.0,100990.0,0.54436725]
[1737329695248,0.22615869,101000.0,100990.0,0.04958]
[1737329695755,0.410364,101030.0,101000.0,0.049576]
[1737329695956,0.22615869,101030.0,101020.0,0.049566]
[1737329696159,0.3608,101050.0,101030.0,0.049562]
[1737329696355,0.22615869,101050.0,101040.0,0.049556]
[1737329696661,0.22615869,101050.0,101040.0,0.049557]
[1737329696857,0.22615869,101050.0,101030.0,0.049561]
[1737329697061,0.22615869,101050.0,101040.0,0.049554]
[1737329697261,0.36132001,101090.0,101050.0,0.049552]
[1737329697558,0.00161777,101100.0,101090.0,0.049532]
[1737329697762,0.00161777,101100.0,101090.0,0.410332]
[1737329698055,0.049532,101090.0,101080.0,0.3608]
[1737329698256,0.049539,101080.0,101050.0,0.049549]
[1737329698456,0.049532,101090.0,101060.0,0.3608]
[1737329698658,0.41194577,101100.0,101070.0,0.04954]
[1737329698862,0.3608,101080.0,101060.0,0.3608]
[1737329699057,0.58695869,101070.0,101060.0,0.049546]
[1737329699254,0.20615869,101070.0,101040.0,0.3608]
[1737329699454,0.3608,101060.0,101040.0,0.3608]
[1737329699661,0.05114577,101100.0,101080.0,0.049536]
[1737329699862,0.20777646,101100.0,101090.0,0.049532]
[1737329700164,0.00161777,101100.0,101090.0,0.049532]
[1737329700366,0.00161777,101100.0,101090.0,0.410332]
[1737329700661,0.00130242,101130.0,101120.0,0.049517]
[1737329700863,0.25697511,101130.0,101110.0,0.049522]
[1737329701159,0.00130242,101130.0,101120.0,0.59388425]
[1737329701552,0.36507005,101160.0,101120.0,0.3608]
[1737329701758,0.56695869,101130.0,101120.0,0.049517]
[1737329701959,0.56695869,101130.0,101110.0,0.049522]
[1737329702154,0.3608,101130.0,101100.0,0.049527]
[1737329702460,0.410304,101150.0,101120.0,0.049514]
[1737329702661,0.11912637,101150.0,101120.0,0.3608]
[1737329702862,0.41456905,101160.0,101110.0,0.3608]
[1737329702863,0.47992637,101140.0,101110.0,0.3608]
[1737329703059,0.11912637,101140.0,101130.0,0.049513]
[1737329703256,0.47992637,101140.0,101110.0,0.3608]
[1737329703559,0.3608,101140.0,101090.0,0.3608]
[1737329703763,0.049538,101080.0,101060.0,0.477287]
[1737329703957,0.3608,101070.0,101040.0,0.00148406]
[1737329704265,0.3608,101050.0,101040.0,0.00148406]
[1737329704466,0.3608,101080.0,101060.0,0.049547]
[1737329704655,0.3608,101080.0,101040.0,0.36228406]
[1737329704656,0.11912637,101080.0,101070.0,0.049542]
[1737329704863,0.11912637,101080.0,101060.0,0.049542]
[1737329705069,0.3608,101070.0,101060.0,0.049542]
[1737329705268,0.47992637,101070.0,101040.0,0.00148406]
[1737329705460,0.47992637,101050.0,101040.0,0.05104106]
[1737329705656,0.3608,101050.0,101040.0,0.00148406]
[1737329705856,0.3608,101080.0,101060.0,0.049545]
[1737329706068,0.11912637,101070.0,101060.0,0.049545]
[1737329706369,0.3608,101080.0,101040.0,0.36228406]
[1737329706557,0.84072637,101050.0,101040.0,0.00148406]
[1737329706762,0.84072637,101050.0,101030.0,0.00012757]
[1737329706965,0.16868337,101040.0,101030.0,0.00012757]
[1737329707165,0.52948337,101040.0,101030.0,0.00012757]
[1737329707670,0.049571,101010.0,100990.0,0.04958]
[1737329707968,0.049582,100990.0,100950.0,0.3608]
[1737329708166,0.01912637,100970.0,100960.0,0.049593]
[1737329708365,0.01912637,100950.0,100930.0,0.3608]
[1737329708573,0.01912637,100950.0,100920.0,0.457814]
[1737329708574,0.42953237,100940.0,100920.0,0.457814]
[1737329708870,0.0001108,100930.0,100920.0,0.049614]
[1737329709074,0.3609108,100930.0,100910.0,0.36228604]
[1737329709367,0.0001108,100930.0,100920.0,0.049616]
[1737329709570,0.01923717,100930.0,100910.0,0.05110504]
[1737329709759,0.01923717,100930.0,100910.0,0.05110704]
[1737329710065,0.37992637,100920.0,100910.0,0.00148604]
[1737329710572,0.54446307,100920.0,100850.0,0.55234664]
[1737329710765,0.3608,100890.0,100860.0,0.3927]
[1737329711071,0.3608,100870.0,100860.0,0.049645]
[1737329711471,0.3608,100870.0,100820.0,0.049665]
[1737329711670,0.54444928,100860.0,100830.0,0.049658]
[1737329711867,0.3608,100850.0,100830.0,0.049658]
[1737329712063,0.00010843,100840.0,100810.0,8.292e-05]
[1737329712264,0.410465,100820.0,100780.0,0.410483]
[1737329712567,0.3608,100830.0,100800.0,0.3608]
[1737329712766,8.331e-05,100820.0,100800.0,0.3608]
[1737329713166,0.41055131,100820.0,100780.0,0.3833411]
[1737329713368,0.3608,100790.0,100780.0,0.0076611]
[1737329713565,0.3608,100790.0,100770.0,0.37572]
[1737329713765,0.3608,100790.0,100770.0,0.01492]
[1737329713961,0.04978371,100780.0,100770.0,0.00785744]
[1737329714165,0.36089871,100780.0,100750.0,0.049699]
[1737329714373,9.871e-05,100780.0,100750.0,0.049699]
[1737329714563,9.871e-05,100780.0,100750.0,0.410499]
[1737329714764,0.7216,100760.0,100730.0,0.00012145]
[1737329714975,0.59418595,100750.0,100730.0,0.00012145]
[1737329715176,0.0001177,100750.0,100730.0,0.36092145]
[1737329715368,0.3608,100780.0,100730.0,0.36092145]
[1737329715680,0.410485,100780.0,100730.0,0.41062845]
[1737329715876,0.410485,100780.0,100740.0,0.5900364]
[1737329715877,0.00012179,100770.0,100740.0,0.5900364]
[1737329716075,0.00012179,100770.0,100740.0,0.5900374]
[1737329716273,0.3608,100760.0,100750.0,0.049699]
[1737329716571,0.3608,100780.0,100760.0,0.049694]
[1737329716778,0.3608,100780.0,100770.0,0.049689]
[1737329717070,0.3608,100780.0,100760.0,0.049694]
[1737329717272,0.3608,100780.0,100740.0,0.410502]
[1737329717477,0.3608,100750.0,100730.0,0.00012145]
[1737329717676,0.54436725,100760.0,100730.0,0.04983045]
[1737329717863,0.3608,100740.0,100730.0,0.00012145]
[1737329718278,9.475e-05,100740.0,100730.0,0.00012145]
[1737329718471,9.475e-05,100740.0,100730.0,0.41063045]
[1737329718674,0.3608,100790.0,100730.0,0.36092145]
[1737329718976,0.53839628,100800.0,100760.0,0.410494]
[1737329718977,0.410477,100800.0,100760.0,0.410494]
[1737329719173,0.3608,100800.0,100760.0,0.410494]
[1737329719375,0.3608,100820.0,100780.0,0.410484]
[1737329719568,0.3608,100820.0,100790.0,0.049678]
[1737329719770,0.3608,100830.0,100790.0,0.049678]
[1737329719771,0.3608,100830.0,100790.0,0.3608]
[1737329720074,0.3608,100830.0,100810.0,0.049668]
[1737329720266,0.3608,100840.0,100810.0,0.3608]
[1737329720466,0.3608,100850.0,100810.0,0.3608]
[1737329720680,0.3608,100850.0,100840.0,0.049655]
[1737329720980,0.410437,100880.0,100850.0,0.04965]
[1737329721174,0.3608,100860.0,100810.0,0.049668]
[1737329721475,0.3608,100830.0,100790.0,0.3608]
[1737329721676,0.3608,100850.0,100830.0,0.049656]
[1737329721880,0.3608,100850.0,100840.0,0.049655]
[1737329722081,0.53839628,100850.0,100810.0,0.3608]
[1737329722281,0.17759628,100830.0,100810.0,0.3608]
[1737329722483,0.3608,100840.0,100800.0,0.3608]
[1737329722688,0.3608,100810.0,100760.0,0.76602]
[1737329722976,0.3608,100810.0,100770.0,0.00198471]
[1737329722977,0.3608,100800.0,100770.0,0.00198471]
[1737329723177,0.17759628,100790.0,100770.0,0.00198471]
[1737329723382,0.3608,100790.0,100770.0,0.00198471]
[1737329723574,0.3608,100790.0,100770.0,0.05167271]
[1737329723778,0.3608,100820.0,100780.0,0.3608]
[1737329723972,0.3608,100820.0,100800.0,0.049674]
[1737329724177,0.3608,100810.0,100790.0,0.05166432]
[1737329724374,0.3608,100830.0,100790.0,0.36278432]
[1737329724576,0.3608,100850.0,100800.0,0.3608]
[1737329724781,0.3608,100850.0,100820.0,0.049662]
[1737329725082,0.3608,100830.0,100790.0,0.36278432]
[1737329725291,0.3608,100860.0,100800.0,0.58806928]
[1737329725487,0.3608,100860.0,100840.0,0.049652]
[1737329725787,0.3608,100870.0,100820.0,0.53839628]
[1737329725988,0.410427,100900.0,100850.0,0.3608]
[1737329726184,0.3608,100870.0,100830.0,0.3608]